fUST/lending_fUST_20241227
["ID","MTS","AMOUNT","RATE_DAILY","PERIOD"]
[346721722,1735242633175,-500.0,0.00016962,2]
[346721723,1735242633184,-503.04840298,0.00016962,2]
[346721724,1735242633193,-500.0,0.00016962,2]
[346721725,1735242633203,-500.0,0.00016962,2]
[346721726,1735242633213,-500.0,0.00016962,2]
[346721727,1735242633223,-502.26533478,0.00016962,2]
[346721728,1735242633232,-507.48,0.00016962,2]
[346721729,1735242633241,-500.0,0.00016962,2]
[346721730,1735242633251,-504.39446717,0.00016962,2]
[346721731,1735242633263,-507.57619124,0.00016962,2]
[346721732,1735242633273,-500.0,0.00016962,2]
[346721733,1735242633282,-500.0,0.00016962,2]
[346721734,1735242633291,-500.0,0.00016962,2]
[346721735,1735242633302,-500.0,0.00016962,2]
[346721736,1735242633311,-159.93191398,0.00016962,2]
[346721737,1735242633321,-500.0,0.00016962,2]
[346721738,1735242633331,-425.02415004,0.00016962,2]
[346721739,1735242633340,-500.0,0.00016962,2]
[346721740,1735242633349,-633.27,0.00016962,2]
[346721741,1735242633359,-500.0,0.00016962,2]
[346721742,1735242633368,-500.0,0.00016962,2]
[346721743,1735242633377,-603.34,0.00016962,2]
[346721744,1735242633387,-500.0,0.00016962,2]
[346721745,1735242633396,-500.0,0.00016962,2]
[346721746,1735242633406,-296.83845014,0.00016962,2]
[346721747,1735242633416,-500.0,0.00016962,2]
[346721748,1735242633425,-369.99115266,0.00016962,2]
[346721749,1735242633435,-500.0,0.00016962,2]
[346721750,1735242633445,-500.0,0.00016962,2]
[346721751,1735242633454,-500.0,0.00016962,2]
[346721752,1735242633463,-500.0,0.00016962,2]
[346721753,1735242633472,-500.0,0.00016962,2]
[346721754,1735242633483,-500.0,0.00016962,2]
[346721755,1735242633493,-500.0,0.00016962,2]
[346721756,1735242633503,-366.45182833,0.00016962,2]
[346721757,1735242633513,-500.0,0.00016962,2]
[346721758,1735242633522,-500.0,0.00016962,2]
[346721759,1735242633531,-500.0,0.00016962,2]
[346721760,1735242633541,-500.0,0.00016962,2]
[346721761,1735242633550,-500.0,0.00016962,2]
[346721762,1735242633559,-500.0,0.00016962,2]
[346721763,1735242633569,-500.0,0.00016962,2]
[346721764,1735242633579,-500.0,0.00016962,2]
[346721765,1735242633589,-500.0,0.00016962,2]
[346721766,1735242633598,-500.0,0.00016962,2]
[346721767,1735242633609,-500.0,0.00016962,2]
[346721768,1735242633619,-500.0,0.00016962,2]
[346721769,1735242633628,-500.0,0.00016962,2]
[346721770,1735242633638,-500.0,0.00016962,2]
[346721771,1735242633648,-500.0,0.00016962,2]
[346721772,1735242633658,-500.0,0.00016962,2]
[346721773,1735242633668,-529.13,0.00016962,2]
[346721774,1735242633678,-500.0,0.00016962,2]
[346721775,1735242633688,-500.0,0.00016962,2]
[346721776,1735242633698,-500.0,0.00016962,2]
[346721777,1735242633708,-199.76057114,0.00016962,2]
[346721792,1735242638514,-500.0,0.00016959,2]
[346721793,1735242638524,-625.57780864,0.00016959,2]
[346721794,1735242638533,-500.0,0.0001696,2]
[346721795,1735242638543,-501.23,0.0001696,2]
[346721796,1735242638553,-500.0,0.00016961,2]
[346721797,1735242638562,-500.0,0.00016961,2]
[346721798,1735242638572,-268.36680976,0.00016961,2]
[346721799,1735242638583,-103.3966194,0.00016961,2]
[346721800,1735242638593,-300.23942886,0.00016962,2]
[346721801,1735242638603,-500.0,0.00016962,2]
[346721802,1735242638612,-301.78975829,0.00016962,2]
[346721803,1735242638623,-198.21024171,0.00016962,2]
[346721804,1735242638633,-500.0,0.00016962,2]
[346721805,1735242638643,-500.0,0.00016962,2]
[346721806,1735242638653,-503.40245848,0.00016962,2]
[346721807,1735242638663,-522.6,0.00016962,2]
[346721808,1735242638672,-536.33,0.00016962,2]
[346721809,1735242638685,-500.0,0.00016962,2]
[346721810,1735242638694,-500.0,0.00016962,2]
[346721811,1735242638704,-618.42475071,0.00016962,2]
[346721812,1735242638714,-500.0,0.00016962,2]
[346721813,1735242638724,-500.0,0.00016962,2]
[346721814,1735242638734,-338.19681267,0.00016962,2]
[346721815,1735242638743,-500.0,0.00016962,2]
[346721816,1735242638753,-697.34,0.00016962,2]
[346721817,1735242638762,-500.0,0.00016962,2]
[346721818,1735242638772,-500.0,0.00016962,2]
[346721819,1735242638782,-500.0,0.00016962,2]
[346721820,1735242638792,-500.0,0.00016962,2]
[346721821,1735242638801,-120.2832741,0.00016962,2]
[346721822,1735242638813,-379.7167259,0.00016962,2]
[346721823,1735242638823,-500.0,0.00016962,2]
[346721824,1735242638832,-500.0,0.00016962,2]
[346721825,1735242638841,-500.0,0.00016962,2]
[346721826,1735242638851,-465.1591853,0.00016962,2]
[346721827,1735242638860,-500.0,0.00016962,2]
[346721828,1735242638870,-500.0,0.00016962,2]
[346721829,1735242638879,-620.42,0.00016962,2]
[346721830,1735242638889,-500.0,0.00016962,2]
[346721831,1735242638899,-500.0,0.00016962,2]
[346721832,1735242638908,-500.0,0.00016962,2]
[346721833,1735242638917,-500.71279426,0.00016962,2]
[346721834,1735242638927,-500.0,0.00016962,2]
[346721835,1735242638936,-397.27731963,0.00016962,2]
[346721836,1735242638946,-500.0,0.00016962,2]
[346721837,1735242638955,-500.0,0.00016962,2]
[346721838,1735242638964,-726.49397501,0.00016962,2]
[346721847,1735242640315,-523.63602499,0.00016962,2]
[346721848,1735242640325,-500.0,0.00016962,2]
[346721849,1735242640335,-638.63,0.00016962,2]
[346721850,1735242640345,-500.0,0.00016962,2]
[346721851,1735242640355,-500.0,0.00016962,2]
[346721852,1735242640364,-500.0,0.00016962,2]
[346721853,1735242640374,-500.0,0.00016962,2]
[346721854,1735242640383,-500.0,0.00016962,2]
[346721855,1735242640392,-500.0,0.00016962,2]
[346721856,1735242640402,-237.027059,0.00016962,2]
[346721857,1735242640413,-512.58556164,0.00016962,2]
[346721858,1735242640427,-500.0,0.00016962,2]
[346721859,1735242640442,-625.15,0.00016962,2]
[346721860,1735242640459,-501.3626067,0.00016962,2]
[346721861,1735242640472,-883.99,0.00016962,2]
[346721862,1735242640483,-500.0,0.00016962,2]
[346721863,1735242640497,-503.92064981,0.00016962,2]
[346721864,1735242640512,-501.62925538,0.00016962,2]
[346721865,1735242640525,-500.0,0.00016962,2]
[346721866,1735242640539,-500.0,0.00016962,2]
[346721867,1735242640552,-500.0,0.00016962,2]
[346721868,1735242640565,-500.0,0.00016962,2]
[346721869,1735242640578,-580.5538592,0.00016962,2]
[346721870,1735242640591,-500.0,0.00016962,2]
[346721871,1735242640605,-619.28,0.00016962,2]
[346721872,1735242640617,-812.8,0.00016962,2]
[346721873,1735242640629,-604.87718765,0.00016962,2]
[346721874,1735242640642,-500.0,0.00016962,2]
[346721875,1735242640655,-500.0,0.00016962,2]
[346721876,1735242640666,-500.0,0.00016962,2]
[346721877,1735242640680,-500.0,0.00016962,2]
[346721878,1735242640693,-500.0,0.00016962,2]
[346721879,1735242640708,-500.0,0.00016962,2]
[346721880,1735242640719,-1000.0,0.00016962,2]
[346721881,1735242640730,-500.0,0.00016962,2]
[346721882,1735242640742,-500.0,0.00016962,2]
[346721883,1735242640753,-500.0,0.00016962,2]
[346721884,1735242640766,-500.0,0.00016962,2]
[346721885,1735242640778,-500.0,0.00016962,2]
[346721886,1735242640791,-500.0,0.00016962,2]
[346721887,1735242640804,-561.24,0.00016962,2]
[346721888,1735242640817,-500.0,0.00016962,2]
[346721889,1735242640830,-500.0,0.00016962,2]
[346721890,1735242640844,-500.0,0.00016962,2]
[346721891,1735242640858,-500.0,0.00016962,2]
[346721892,1735242640870,-500.0,0.00016962,2]
[346721893,1735242640880,-500.0,0.00016962,2]
[346721894,1735242640892,-500.0,0.00016962,2]
[346721895,1735242640919,-500.0,0.00016963,2]
[346721896,1735242640931,-500.0,0.00016963,2]
[346721897,1735242640945,-500.0,0.00016963,2]
[346721898,1735242640959,-449.40405833,0.00016963,2]
[346721899,1735242640971,-507.71543197,0.00016963,2]
[346721900,1735242640981,-502.98833948,0.00016963,2]
[346721901,1735242640993,-500.0,0.00016963,2]
[346721902,1735242641005,-500.0,0.00016963,2]
[346721903,1735242641017,-500.0,0.00016963,2]
[346721904,1735242641029,-500.0,0.00016963,2]
[346721905,1735242641040,-500.0,0.00016963,2]
[346721906,1735242641051,-157.1069165,0.00016963,2]
[346721907,1735242641062,-500.0,0.00016963,2]
[346721908,1735242641073,-500.0,0.00016963,2]
[346721909,1735242641084,-561.07658577,0.00016963,2]
[346721910,1735242641096,-641.94,0.00016963,2]
[346721911,1735242641107,-500.0,0.00016963,2]
[346721912,1735242641119,-500.0,0.00016963,2]
[346721913,1735242641130,-500.0,0.00016963,2]
[346721914,1735242641142,-500.0,0.00016963,2]
[346721915,1735242641153,-500.0,0.00016963,2]
[346721916,1735242641164,-500.0,0.00016963,2]
[346721917,1735242641176,-500.0,0.00016963,2]
[346721918,1735242641187,-500.0,0.00016963,2]
[346721919,1735242641199,-288.8968192,0.00016963,2]
[346721920,1735242641209,-500.0,0.00016963,2]
[346721921,1735242641220,-500.0,0.00016963,2]
[346721922,1735242641232,-161.35503863,0.00016963,2]
[346721923,1735242641244,-500.0,0.00016963,2]
[346721924,1735242641263,-500.0,0.00016963,2]
[346721925,1735242641277,-500.0,0.00016963,2]
[346721926,1735242641288,-500.0,0.00016963,2]
[346721927,1735242641299,-500.0,0.00016963,2]
[346721928,1735242641310,-500.0,0.00016963,2]
[346721929,1735242641322,-500.0,0.00016963,2]
[346721930,1735242641333,-500.0,0.00016963,2]
[346721931,1735242641344,-500.0,0.00016963,2]
[346721932,1735242641355,-508.21318147,0.00016963,2]
[346721933,1735242641367,-500.0,0.00016964,2]
[346721934,1735242641378,-500.0,0.00016964,2]
[346721935,1735242641390,-500.0,0.00016964,2]
[346721936,1735242641402,-500.0,0.00016964,2]
[346721937,1735242641413,-500.0,0.00016964,2]
[346721938,1735242641424,-500.0,0.00016964,2]
[346721939,1735242641435,-500.0,0.00016964,2]
[346721940,1735242641446,-500.0,0.00016964,2]
[346721941,1735242641457,-500.0,0.00016964,2]
[346721942,1735242641469,-644.89,0.00016964,2]
[346721943,1735242641480,-3725.41,0.00016965,2]
[346721944,1735242641491,-500.0,0.00016965,2]
[346721945,1735242641502,-3174.21,0.00016965,2]
[346721946,1735242641514,-500.0,0.00016973,2]
[346721947,1735242641526,-500.0,0.00016973,2]
[346721948,1735242641536,-589.136,0.00017,2]
[346721949,1735242641545,-981.34737196,0.00017133,2]
[346721950,1735242641556,-981.34737196,0.00017133,2]
[346721951,1735242641565,-981.34737196,0.00017133,2]
[346721952,1735242641575,-981.34737196,0.00017133,2]
[346721953,1735242641585,-981.34737196,0.00017133,2]
[346721954,1735242641715,-981.34737196,0.00017133,2]
[346721955,1735242641727,-981.34737196,0.00017133,2]
[346721956,1735242641737,-981.34737196,0.00017133,2]
[346721957,1735242641747,-981.34737196,0.00017133,2]
[346721958,1735242641756,-981.34737196,0.00017133,2]
[346721959,1735242641766,-981.34737196,0.00017133,2]
[346721960,1735242641776,-981.34737196,0.00017133,2]
[346721961,1735242641786,-981.34737196,0.00017133,2]
[346721962,1735242641796,-981.34737196,0.00017133,2]
[346721963,1735242641805,-981.34737196,0.00017133,2]
[346721964,1735242641815,-981.34737196,0.00017133,2]
[346721965,1735242641825,-981.34737196,0.00017133,2]
[346721966,1735242641835,-981.34737196,0.00017133,2]
[346721967,1735242641845,-981.34737196,0.00017133,2]
[346721968,1735242641855,-981.34,0.00017133,2]
[346721969,1735242641865,-1472.02105795,0.00017133,2]
[346721970,1735242641874,-1472.02105795,0.00017133,2]
[346721971,1735242641884,-1472.02105795,0.00017133,2]
[346721972,1735242641893,-1472.02105795,0.00017133,2]
[346721973,1735242641903,-1472.02105795,0.00017133,2]
[346721974,1735242641912,-1472.02105795,0.00017133,2]
[346721975,1735242641923,-1472.02105795,0.00017133,2]
[346721976,1735242641932,-1472.02105795,0.00017133,2]
[346721977,1735242641941,-1472.02105795,0.00017133,2]
[346721978,1735242641951,-1472.02105795,0.00017133,2]
[346721979,1735242641961,-1472.02105795,0.00017133,2]
[346721980,1735242641970,-1472.02105795,0.00017133,2]
[346721981,1735242641979,-1472.02105795,0.00017133,2]
[346721982,1735242641988,-1472.02105795,0.00017133,2]
[346721983,1735242641998,-1472.02105795,0.00017133,2]
[346721984,1735242642007,-1472.02105795,0.00017133,2]
[346721985,1735242642016,-1472.02105795,0.00017133,2]
[346721986,1735242642026,-1472.02105795,0.00017133,2]
[346721987,1735242642035,-1472.02105795,0.00017133,2]
[346721988,1735242642045,-1472.02,0.00017133,2]
[346721989,1735242642054,-582.46437498,0.00017133,2]
[346721990,1735242642064,-582.46437498,0.00017133,2]
[346721991,1735242642074,-582.46437498,0.00017133,2]
[346721992,1735242642083,-582.46437498,0.00017133,2]
[346721993,1735242642092,-582.46437498,0.00017133,2]
[346721994,1735242642102,-582.46437498,0.00017133,2]
[346721995,1735242642111,-582.46437498,0.00017133,2]
[346721996,1735242642120,-582.46437498,0.00017133,2]
[346721997,1735242642131,-582.46437498,0.00017133,2]
[346721998,1735242642140,-582.46437498,0.00017133,2]
[346721999,1735242642150,-582.46437498,0.00017133,2]
[346722000,1735242642159,-582.46437498,0.00017133,2]
[346722001,1735242642169,-582.46437498,0.00017133,2]
[346722002,1735242642178,-582.46437498,0.00017133,2]
[346722003,1735242642187,-582.46437498,0.00017133,2]
[346722004,1735242642198,-582.46437498,0.00017133,2]
[346722005,1735242642208,-582.46437498,0.00017133,2]
[346722006,1735242642218,-582.46437498,0.00017133,2]
[346722007,1735242642227,-582.46437498,0.00017133,2]
[346722008,1735242642236,-582.46,0.00017133,2]
[346722009,1735242642246,-873.69656247,0.00017133,2]
[346722010,1735242642255,-873.69656247,0.00017133,2]
[346722011,1735242642267,-873.69656247,0.00017133,2]
[346722012,1735242642277,-873.69656247,0.00017133,2]
[346722013,1735242642288,-873.69656247,0.00017133,2]
[346722014,1735242642297,-873.69656247,0.00017133,2]
[346722015,1735242642307,-873.69656247,0.00017133,2]
[346722016,1735242642316,-873.69656247,0.00017133,2]
[346722017,1735242642325,-873.69656247,0.00017133,2]
[346722018,1735242642336,-873.69656247,0.00017133,2]
[346722019,1735242642345,-873.69656247,0.00017133,2]
[346722020,1735242642354,-873.69656247,0.00017133,2]
[346722021,1735242642364,-873.69656247,0.00017133,2]
[346722022,1735242642373,-873.69656247,0.00017133,2]
[346722023,1735242642383,-873.69656247,0.00017133,2]
[346722024,1735242642393,-873.69656247,0.00017133,2]
[346722025,1735242642402,-873.69656247,0.00017133,2]
[346722026,1735242642412,-873.69656247,0.00017133,2]
[346722027,1735242642421,-873.69656247,0.00017133,2]
[346722028,1735242642431,-873.69,0.00017133,2]
[346722029,1735242642440,-154.02112611,0.00017135,2]
[346722030,1735242642449,-348.96911994,0.00017233,2]
[346722031,1735242642458,-3299.25949703,0.00017233,2]
[346722032,1735242642468,-511.12,0.00017233,2]
[346722033,1735242642478,-6224.54051669,0.00017233,2]
[346722034,1735242642493,-10495.93607092,0.00017233,2]
[346722051,1735242643358,-1267.50837983,0.00017233,2]
[346722052,1735242643369,-366.45182833,0.00017233,2]
[346722053,1735242643381,-1145.23774556,0.00017233,2]
[346722065,1735242646576,-8749.07651349,0.00017233,2]
[346722066,1735242667963,2597.07,0.00023,120]
[346722069,1735243115720,780.0,0.00020539,30]
[346722070,1735243465921,500.0,0.00020556,120]
[346722071,1735243626116,-400.0,0.00013833,2]
[346722072,1735243626137,-374.9027957,0.00013973,2]
[346722073,1735243639241,-25.0972043,0.00013973,2]
[346722074,1735243639264,-179.85513,0.00015961,2]
[346722075,1735243639286,-972.5596088,0.00016044,2]
[346722076,1735243639308,-160.09746409,0.0001686,2]
[346722077,1735243639329,-180.735,0.00016895,2]
[346722078,1735243639351,-300.0,0.00016922,2]
[346722079,1735243639373,-300.0,0.00016922,2]
[346722080,1735243639394,-4857.70229446,0.00016923,2]
[346722081,1735243641173,-5716.91985883,0.00016923,2]
[346722082,1735243641195,-160.09746405,0.00016928,2]
[346722083,1735243641217,-500.0,0.00016957,2]
[346722084,1735243641239,-500.0,0.00016957,2]
[346722085,1735243641261,-1012.74,0.00016957,2]
[346722086,1735243641285,-500.0,0.00016957,2]
[346722087,1735243641306,-500.0,0.00016957,2]
[346722088,1735243641327,-500.0,0.00016957,2]
[346722089,1735243641349,-500.0,0.00016957,2]
[346722090,1735243641371,-500.0,0.00016957,2]
[346722091,1735243641394,-500.0,0.00016957,2]
[346722092,1735243641414,-500.0,0.00016957,2]
[346722093,1735243641434,-500.0,0.00016957,2]
[346722094,1735243641456,-370.08014803,0.00016957,2]
[346722095,1735243641482,-500.0,0.00016958,2]
[346722096,1735243641505,-500.0,0.00016958,2]
[346722097,1735243641526,-500.0,0.00016958,2]
[346722098,1735243641547,-500.0,0.00016958,2]
[346722099,1735243641571,-500.0,0.00016958,2]
[346722100,1735243641591,-500.0,0.00016958,2]
[346722101,1735243641612,-98.29641901,0.00016958,2]
[346722102,1735243645094,-242.12371189,0.00016958,2]
[346722103,1735243771084,-369.81707136,0.00016787,2]
[346722104,1735243780088,163.12548603,0.00016689,2]
[346722105,1735243796002,163.12548603,0.00016689,2]
[346722106,1735243811950,163.12548603,0.00016689,2]
[346722107,1735243827672,252.17655149,0.00016786,2]
[346722196,1735243838373,-300.0,0.00016956,2]
[346722198,1735243838383,-5.91959536,0.00016956,2]
[346722210,1735243838926,-294.08040464,0.00016956,2]
[346722211,1735243838935,-500.0,0.00016957,2]
[346722212,1735243838946,-3319.10637622,0.00016957,2]
[346722240,1735243843261,-160.09746405,0.0001686,2]
[346722241,1735243843270,-2439.37432913,0.00016957,2]
[346722264,1735243846308,-534.14929465,0.00016957,2]
[346722265,1735243846317,-500.0,0.00016957,2]
[346722266,1735243846327,-500.0,0.00016957,2]
[346722267,1735243846337,-2812.29,0.00016957,2]
[346722268,1735243846346,-500.0,0.00016957,2]
[346722269,1735243846356,-500.0,0.00016957,2]
[346722270,1735243846365,-500.0,0.00016957,2]
[346722272,1735243846375,-970.54,0.00016957,2]
[346722274,1735243846384,-1174.3,0.00016957,2]
[346722276,1735243846394,-500.0,0.00016957,2]
[346722278,1735243846403,-741.14,0.00016957,2]
[346722279,1735243846413,-500.0,0.00016957,2]
[346722280,1735243846422,-606.99,0.00016957,2]
[346722281,1735243846431,-500.0,0.00016957,2]
[346722282,1735243846440,-500.0,0.00016957,2]
[346722283,1735243846450,-500.0,0.00016957,2]
[346722284,1735243846462,-460.23440041,0.00016957,2]
[346722285,1735243846471,-206.85409164,0.00016957,2]
[346722286,1735243846480,-500.0,0.00016957,2]
[346722287,1735243846491,-517.0217496,0.00016957,2]
[346722288,1735243846500,-216.3098691,0.00016958,2]
[346722289,1735243846509,-500.0,0.00016958,2]
[346722290,1735243846519,-500.0,0.00016958,2]
[346722291,1735243846528,-500.0,0.00016958,2]
[346722292,1735243846538,-500.0,0.00016958,2]
[346722293,1735243846547,-500.0,0.00016958,2]
[346722294,1735243846557,-500.0,0.00016958,2]
[346722295,1735243846566,-500.0,0.00016958,2]
[346722296,1735243846575,-500.0,0.00016958,2]
[346722297,1735243846585,-500.0,0.00016958,2]
[346722298,1735243846594,-500.0,0.00016958,2]
[346722299,1735243846603,-576.00805946,0.00016958,2]
[346722300,1735243846615,-500.0,0.00016958,2]
[346722301,1735243846625,-500.0,0.00016958,2]
[346722302,1735243846637,-500.0,0.00016958,2]
[346722303,1735243846646,-500.0,0.00016958,2]
[346722304,1735243846655,-500.0,0.00016958,2]
[346722305,1735243846664,-500.0,0.00016958,2]
[346722306,1735243846674,-500.0,0.00016958,2]
[346722307,1735243846683,-500.0,0.00016958,2]
[346722308,1735243846693,-500.0,0.00016958,2]
[346722309,1735243846702,-644.48380355,0.00016958,2]
[346722310,1735243846714,-500.0,0.00016958,2]
[346722311,1735243846723,-500.96220777,0.00016958,2]
[346722312,1735243846732,-500.0,0.00016958,2]
[346722313,1735243846741,-500.0,0.00016958,2]
[346722314,1735243846750,-500.0,0.00016958,2]
[346722315,1735243846759,-503.5248217,0.00016958,2]
[346722316,1735243846768,-500.73454713,0.00016958,2]
[346722317,1735243846778,-500.0,0.00016958,2]
[346722318,1735243846788,-501.28085426,0.00016958,2]
[346722319,1735243846797,-500.0,0.00016958,2]
[346722320,1735243846807,-501.09012112,0.00016958,2]
[346722321,1735243846816,-500.0,0.00016958,2]
[346722322,1735243846826,-500.0,0.00016958,2]
[346722323,1735243846835,-500.0,0.00016958,2]
[346722324,1735243846844,-500.0,0.00016958,2]
[346722325,1735243846967,-500.0,0.00016958,2]
[346722326,1735243846977,-500.0,0.00016958,2]
[346722327,1735243846988,-500.0,0.00016958,2]
[346722328,1735243846997,-500.0,0.00016958,2]
[346722329,1735243847007,-500.0,0.00016958,2]
[346722330,1735243847016,-500.97807327,0.00016958,2]
[346722331,1735243847026,-500.0,0.00016958,2]
[346722332,1735243847035,-500.0,0.00016958,2]
[346722333,1735243847045,-500.0,0.00016958,2]
[346722334,1735243847055,-500.0,0.00016958,2]
[346722335,1735243847064,-500.86988622,0.00016958,2]
[346722336,1735243847074,-500.0,0.00016958,2]
[346722337,1735243847083,-500.0,0.00016958,2]
[346722338,1735243847092,-500.0,0.00016958,2]
[346722339,1735243847101,-500.0,0.00016958,2]
[346722340,1735243847111,-500.0,0.00016958,2]
[346722341,1735243847120,-500.0,0.00016958,2]
[346722342,1735243847129,-343.19389308,0.00016958,2]
[346722343,1735243847138,-500.0,0.00016958,2]
[346722344,1735243847148,-500.0,0.00016958,2]
[346722345,1735243847158,-500.0,0.00016958,2]
[346722346,1735243847167,-500.0,0.00016958,2]
[346722347,1735243847177,-501.96902219,0.00016958,2]
[346722348,1735243847186,-500.0,0.00016958,2]
[346722349,1735243847195,-504.43346536,0.00016958,2]
[346722350,1735243847205,-504.21406315,0.00016958,2]
[346722351,1735243847215,-500.0,0.00016958,2]
[346722352,1735243847224,-500.0,0.00016958,2]
[346722353,1735243847234,-500.0,0.00016958,2]
[346722354,1735243847244,-500.0,0.00016958,2]
[346722355,1735243847254,-500.0,0.00016958,2]
[346722356,1735243847263,-500.0,0.00016958,2]
[346722357,1735243847273,-500.0,0.00016958,2]
[346722358,1735243847284,-500.0,0.00016958,2]
[346722359,1735243847293,-500.0,0.00016958,2]
[346722360,1735243847303,-500.0,0.00016958,2]
[346722361,1735243847312,-500.0,0.00016958,2]
[346722362,1735243847321,-500.94075034,0.00016958,2]
[346722363,1735243847331,-500.75654411,0.00016958,2]
[346722364,1735243847340,-501.12667844,0.00016958,2]
[346722365,1735243847350,-500.0,0.00016958,2]
[346722366,1735243847359,-504.49986616,0.00016958,2]
[346722367,1735243847369,-500.0,0.00016958,2]
[346722368,1735243847378,-500.0,0.00016958,2]
[346722369,1735243847388,-500.0,0.00016958,2]
[346722370,1735243847398,-500.0,0.00016958,2]
[346722371,1735243847408,-500.0,0.00016958,2]
[346722372,1735243847417,-500.0,0.00016958,2]
[346722373,1735243847427,-168.0,0.00016958,2]
[346722374,1735243847437,-500.0,0.00016958,2]
[346722375,1735243847448,-500.0,0.00016958,2]
[346722376,1735243847459,-652.21,0.00016958,2]
[346722377,1735243847469,-200.0,0.00016958,2]
[346722378,1735243847479,-500.0,0.00016958,2]
[346722379,1735243847489,-500.0,0.00016958,2]
[346722380,1735243847499,-500.0,0.00016958,2]
[346722381,1735243847508,-500.0,0.00016958,2]
[346722382,1735243847518,-500.0,0.00016958,2]
[346722383,1735243847528,-508.1229231,0.00016958,2]
[346722384,1735243847537,-500.0,0.00016958,2]
[346722385,1735243847547,-500.0,0.00016958,2]
[346722386,1735243847556,-500.0,0.00016958,2]
[346722387,1735243847566,-500.0,0.00016958,2]
[346722388,1735243847577,-500.0,0.00016958,2]
[346722389,1735243847587,-500.0,0.00016958,2]
[346722390,1735243847596,-500.0,0.00016958,2]
[346722391,1735243847605,-500.0,0.00016958,2]
[346722392,1735243847615,-500.0,0.00016958,2]
[346722393,1735243847625,-231.67979924,0.00016958,2]
[346722394,1735243847637,-500.0,0.00016958,2]
[346722395,1735243847647,-500.0,0.00016958,2]
[346722396,1735243847657,-500.0,0.00016958,2]
[346722397,1735243847666,-506.12448524,0.00016958,2]
[346722398,1735243847676,-500.0,0.00016958,2]
[346722399,1735243847687,-500.0,0.00016958,2]
[346722400,1735243847696,-500.0,0.00016958,2]
[346722401,1735243847707,-500.0,0.00016958,2]
[346722402,1735243847717,-500.0,0.00016958,2]
[346722403,1735243847726,-500.0,0.00016958,2]
[346722404,1735243847736,-500.0,0.00016958,2]
[346722405,1735243847746,-500.0,0.00016958,2]
[346722406,1735243847756,-500.0,0.00016958,2]
[346722407,1735243847766,-500.0,0.00016958,2]
[346722408,1735243847775,-500.0,0.00016958,2]
[346722409,1735243847785,-152.97,0.00016958,2]
[346722410,1735243847795,-1039.84,0.00016958,2]
[346722411,1735243847804,-500.0,0.00016958,2]
[346722412,1735243847814,-500.0,0.00016958,2]
[346722413,1735243847824,-1561.07,0.00016958,2]
[346722414,1735243847833,-500.0,0.00016958,2]
[346722415,1735243847842,-500.0,0.00016958,2]
[346722416,1735243847852,-500.0,0.00016958,2]
[346722417,1735243847861,-500.0,0.00016958,2]
[346722418,1735243847870,-500.0,0.00016958,2]
[346722419,1735243847880,-500.0,0.00016958,2]
[346722420,1735243847889,-500.0,0.00016958,2]
[346722421,1735243847899,-500.0,0.00016958,2]
[346722422,1735243847909,-500.0,0.00016958,2]
[346722423,1735243847919,-500.0,0.00016958,2]
[346722424,1735243847929,-500.0,0.00016958,2]
[346722425,1735243847939,-500.0,0.00016958,2]